bitfinex-derivatives/quotes_ETHF0:USTF0_20250326
["timestamp","ask_amount","ask_price","bid_price","bid_amount"]
[1743030497708,2.42158,1999.0,1998.9,40.8]
[1743030498917,2.42158,1999.0,1998.9,41.80043]
[1743030499228,5.83,1999.2,1999.1,1.00033]
[1743030499414,6.83031,1999.2,1999.1,1.00033]
[1743030499716,5.55187,1999.3,1999.2,1.00028]
[1743030500019,3.8911,1999.3,1999.2,1.00028]
[1743030500219,1.68353,1999.3,1999.2,1.00028]
[1743030501127,2.35531,1999.4,1999.3,1.00023]
[1743030501823,2.35531,1999.4,1999.3,2.36433]
[1743030507119,2.35531,1999.4,1999.3,1.3641]
[1743030507319,2.35531,1999.4,1999.3,2.36433]
[1743030508832,2.35528,1999.4,1999.3,2.36433]
[1743030509933,1.00011,1999.6,1999.5,1.00013]
[1743030511231,2.36681,1999.6,1999.5,2.36023]
[1743030513831,2.36681,1999.6,1999.5,1.3601]
[1743030514029,2.36681,1999.6,1999.2,1.00024]
[1743030514030,1.00028,1999.3,1999.2,1.00024]
[1743030514233,1.00028,1999.2,1999.1,3.23]
[1743030514439,1.00033,1999.1,1999.0,2.42563]
[1743030514731,1.00043,1999.0,1998.9,1.00039]
[1743030515034,1.00043,1999.0,1998.9,2.42569]
[1743030515230,2.42133,1999.0,1998.9,2.42569]
[1743030516440,2.42133,1999.0,1998.9,1.4253]
[1743030516639,2.42133,1999.0,1998.9,2.42573]
[1743030517137,2.42133,1999.0,1998.9,1.4253]
[1743030517335,1.00043,1998.9,1998.8,41.80046]
[1743030517537,2.98213,1998.9,1998.8,40.8]
[1743030518941,2.50132,1998.7,1998.2,1.00075]
[1743030519236,2.50132,1998.7,1997.9,3.2078]
[1743030519237,1.00055,1998.7,1998.4,3.2078]
[1743030519440,1.00055,1998.7,1998.6,1.00058]
[1743030519639,2.31915281,1998.7,1998.6,1.00058]
[1743030519835,1.00062,1998.6,1998.5,1.0006]
[1743030520135,2.31172,1998.6,1998.5,1.4007]
[1743030520840,2.31172,1998.6,1998.5,2.40133]
[1743030521437,2.98702,1998.6,1998.5,2.40133]
[1743030521638,2.98702,1998.6,1998.5,1.4007]
[1743030522544,3.66672,1998.6,1998.5,1.4007]
[1743030522936,3.66672,1998.6,1998.5,2.40133]
[1743030523341,3.66672,1998.6,1998.5,1.4007]
[1743030524047,3.66672,1998.6,1998.5,2.40133]
[1743030524237,3.66672,1998.6,1998.5,1.4007]
[1743030524638,1.00068,1998.4,1998.3,44.031]
[1743030524840,1.00068,1998.4,1998.3,43.22443]
[1743030525239,1.00068,1998.4,1998.3,42.2237]
[1743030525636,1.00068,1998.4,1998.3,40.8]
[1743030528646,4.20848,1998.4,1998.3,40.8]
[1743030529352,1.00068,1998.4,1998.3,41.80073]
[1743030529855,1.00068,1998.4,1998.3,42.45733]
[1743030530163,1.00068,1998.4,1998.3,43.81963]
[1743030530344,2.31226,1998.5,1998.4,1.00068]
[1743030530544,2.31226,1998.5,1998.4,2.36298]
[1743030531350,2.31226,1998.5,1998.4,1.3623]
[1743030534449,2.31226,1998.5,1998.4,2.36298]
[1743030534851,1.3116,1998.5,1998.4,2.36298]
[1743030535050,1.3116,1998.5,1998.4,3.02448]
[1743030536150,2.31223,1998.5,1998.4,3.02448]
[1743030536652,1.3116,1998.5,1998.4,3.02448]
[1743030537446,1.00062,1998.6,1998.5,1.00063]
[1743030537648,1.00062,1998.6,1998.5,2.43273]
[1743030539050,2.40748281,1998.7,1998.6,1.00058]
[1743030539247,2.40748281,1998.7,1998.6,2.44028]
[1743030544048,1.40690281,1998.7,1998.6,2.44028]
[1743030544558,1.40690281,1998.7,1998.6,5.64808]
[1743030544755,2.40743281,1998.7,1998.6,5.64808]
[1743030545257,0.00750281,1998.7,1998.6,5.64808]
[1743030545853,0.00750281,1998.7,1998.6,8.87908]
[1743030546057,1.6938,1999.2,1999.1,1.00033]
[1743030546756,1.00038,1999.1,1999.0,1.00034]
[1743030547455,2.32258,1999.1,1999.0,2.41054]
[1743030549460,1.00038,1999.0,1998.9,0.00750281]
[1743030549654,3.70268,1999.0,1998.9,0.00750281]
[1743030549957,6.91048,1999.0,1998.9,0.00750281]
[1743030550546,2.33518,1999.0,1998.9,1.00793281]
[1743030551060,2.33518,1999.0,1998.9,0.00750281]
[1743030551956,2.33518,1999.0,1998.9,2.42683281]
[1743030552162,2.33518,1999.0,1998.9,1.42640281]
[1743030552468,2.33518,1999.0,1998.9,2.42683281]
[1743030553362,2.33518,1999.0,1998.9,1.42640281]
[1743030553859,2.33518,1999.0,1998.9,2.42683281]
[1743030554258,2.33518,1999.0,1998.9,1.42640281]
[1743030554459,2.33518,1999.0,1998.9,2.42683281]
[1743030554668,2.33518,1999.0,1998.9,1.42640281]
[1743030555262,2.33518,1999.0,1998.9,2.42683281]
[1743030555560,2.33518,1999.0,1998.9,1.42640281]
[1743030556063,2.33518,1999.0,1998.9,0.00750281]
[1743030557261,2.33518,1999.0,1998.9,1.44880281]
[1743030557858,2.33518,1999.0,1998.9,0.00750281]
[1743030558163,5.54298,1999.0,1998.9,0.00750281]
[1743030559161,2.33518,1999.0,1998.9,0.00750281]
[1743030559663,2.33518,1999.0,1998.9,1.44880281]
[1743030560066,5.54298,1999.0,1998.9,0.00750281]
[1743030566267,5.54298,1999.0,1998.9,0.00750281]
[1743030566972,5.54298,1999.0,1998.9,1.44100281]
[1743030567565,5.54298,1999.0,1998.9,0.00750281]
[1743030569371,5.54298,1999.0,1998.9,1.43320281]
[1743030573371,5.54298,1999.0,1998.9,0.00750281]
[1743030573971,2.33518,1999.0,1998.9,1.00793281]
[1743030574272,1.00782281,1999.2,1999.1,1.00033]
[1743030574664,2.39462281,1999.2,1999.1,1.00033]
[1743030574865,2.39462281,1999.2,1999.1,2.43193]
[1743030576467,2.39462281,1999.2,1999.1,1.4316]
[1743030576667,2.39462281,1999.2,1999.1,2.43193]
[1743030576867,2.39462281,1999.2,1999.1,1.4316]
[1743030579375,1.00038,1999.0,1998.9,0.00750281]
[1743030579768,1.00038,1999.0,1998.9,1.33860281]
[1743030579968,2.31138,1999.0,1998.9,1.33860281]
[1743030580167,5.51918,1999.0,1998.9,0.00750281]
[1743030580969,2.31138,1999.0,1998.9,1.00793281]
[1743030581167,2.31138,1999.0,1998.9,0.00750281]
[1743030581368,2.31138,1999.0,1998.9,0.71100281]
[1743030581569,2.31138,1999.0,1998.9,2.09790281]
[1743030581879,1.00038,1999.0,1998.9,3.09833281]
[1743030584375,2.36996,1999.1,1999.0,1.00038]
[1743030584678,2.36996,1999.1,1999.0,2.97088]
[1743030585269,1.3696,1999.1,1999.0,2.97088]
[1743030585474,1.00033,1999.1,1999.0,2.97088]
[1743030587369,1.31260281,1999.2,1999.0,2.97088]
[1743030587370,2.31290281,1999.2,1999.1,1.00033]
[1743030587569,2.31290281,1999.2,1999.1,2.44233]
[1743030588781,2.31290281,1999.2,1999.1,5.65013]
[1743030589081,0.00750281,1999.2,1999.1,5.65013]
[1743030590180,1.00013,1999.6,1999.5,1.00008]
[1743030591267,1.00013,1999.5,1999.4,1.69874]
[1743030591475,2.30153,1999.5,1999.4,1.69874]
[1743030592569,2.30153,1999.5,1999.4,3.01374]
[1743030594782,1.00023,1999.4,1999.1,5.70858]
[1743030595082,1.65218,1999.3,1999.2,2.41096]
[1743030595483,3.01818,1999.3,1999.2,2.41096]
[1743030596283,1.00033,1999.1,1999.0,3.8927]
[1743030596482,1.00033,1999.1,1999.0,4.89308]
[1743030596679,1.00033,1999.1,1999.0,3.8927]
[1743030596876,1.65363,1999.1,1999.0,4.89308]
[1743030597682,1.65363,1999.1,1999.0,6.29838]
[1743030600288,1.65363,1999.1,1999.0,5.298]
[1743030600583,1.65363,1999.1,1999.0,6.29838]
[1743030601383,1.65363,1999.1,1999.0,4.6353]
[1743030602182,4.86143,1999.1,1999.0,4.6353]
[1743030602593,1.00038,1999.0,1998.9,1.40410281]
[1743030602893,2.33838,1999.0,1998.9,1.40410281]
[1743030604389,2.33838,1999.0,1998.9,2.40453281]
[1743030604590,2.33838,1999.0,1998.9,1.40410281]
[1743030606891,2.33838,1999.0,1998.9,0.00750281]
[1743030607688,1.00053,1998.7,1998.6,1.3815]
[1743030608597,2.40553,1998.7,1998.6,1.3815]
[1743030611198,2.40553,1998.7,1998.6,2.38208]
[1743030611392,2.40553,1998.7,1998.6,1.3815]
[1743030611999,2.40553,1998.7,1998.6,2.38208]
[1743030614896,2.40553,1998.7,1998.6,1.3815]
[1743030615098,2.40553,1998.7,1998.6,2.38208]
[1743030617002,2.40553,1998.7,1998.6,1.3815]
[1743030617896,2.40553,1998.7,1998.6,2.38208]
[1743030618399,2.40553,1998.7,1998.6,1.3815]
[1743030619805,1.00058,1998.6,1998.5,0.00750281]
[1743030620106,2.43508,1998.6,1998.5,1.44430281]
[1743030620404,2.43508,1998.6,1998.5,2.44493281]
[1743030620700,2.43508,1998.6,1998.5,1.44430281]
[1743030621097,2.43508,1998.6,1998.5,2.44493281]
[1743030622304,1.00058,1998.6,1998.5,2.44493281]
[1743030622498,3.2078,1999.1,1998.5,7.15210281]
[1743030622697,1.00042,1999.0,1998.9,1.00039]
[1743030623006,1.00042,1999.0,1998.9,2.0373]
[1743030623706,2.43862,1999.0,1998.9,2.0373]
[1743030624299,2.43862,1999.0,1998.9,1.3556]
[1743030627104,2.43862,1999.0,1998.9,2.35603]
[1743030627306,1.4382,1999.0,1998.9,2.35603]
[1743030627608,1.00036,1999.1,1999.0,1.00038]
[1743030627906,2.30876,1999.1,1999.0,2.44368]
[1743030628309,1.0003,1999.2,1999.1,1.00028]
[1743030628511,1.65259,1999.5,1999.4,1.00018]
[1743030629795,1.65259,1999.5,1999.3,1.4433]
[1743030629796,1.00018,1999.4,1999.3,1.4433]
[1743030629995,2.34048,1999.4,1999.3,1.4433]
[1743030630206,2.34048,1999.4,1999.3,2.44353]
[1743030631210,2.34048,1999.4,1999.3,1.4433]
[1743030631411,1.00028,1999.2,1999.1,4.88798]
[1743030632511,1.00028,1999.2,1999.1,8.09578]
[1743030632704,1.00028,1999.2,1999.1,6.22068]
[1743030632904,1.67328,1999.2,1999.1,6.22068]
[1743030635308,1.67328,1999.2,1999.1,9.42848]
[1743030635508,1.67328,1999.2,1999.1,6.22068]
[1743030637417,2.98158,1999.2,1999.1,6.22068]
[1743030637606,1.9813,1999.2,1999.1,9.42848]
[1743030637806,2.98158,1999.2,1999.1,9.42848]
[1743030638009,1.3083,1999.2,1999.1,9.42848]
[1743030638507,1.00016,1999.5,1999.4,1.00012]
[1743030638720,2.30846,1999.5,1999.4,1.00012]
[1743030638913,2.30846,1999.5,1999.4,41.80012]
[1743030639106,2.30846,1999.5,1999.4,43.14242]
[1743030639307,2.30846,1999.5,1999.4,43.83172]
[1743030640020,2.30846,1999.5,1999.4,42.8316]
[1743030640218,1.00023,1999.3,1999.2,1.00026]
[1743030640419,1.00023,1999.3,1999.2,4.5318]
[1743030640918,2.33113,1999.3,1999.2,46.33208]
[1743030643710,2.33113,1999.3,1999.2,45.3318]
[1743030643911,2.33113,1999.3,1999.2,46.33208]
[1743030644417,2.33113,1999.3,1999.2,45.3318]
[1743030644718,2.33113,1999.3,1999.2,46.33208]
[1743030647020,2.50757281,1999.7,1999.5,1.00008]
[1743030647206,0.00750281,1999.7,1999.6,1.3583]
[1743030647410,1.00752281,1999.7,1999.6,1.3583]
[1743030648413,2.35682281,1999.7,1999.6,1.3583]
[1743030648613,2.35682281,1999.7,1999.6,2.35838]
[1743030650716,0.00750281,1999.7,1999.6,2.35838]
[1743030650922,4.20772,2000.0,1999.8,0.99997]
[1743030650923,1.3493,1999.9,1999.8,0.99997]
[1743030651218,1.3493,1999.9,1999.8,4.22897]
[1743030651613,1.3493,1999.9,1999.8,5.64497]
[1743030652716,1.3493,1999.9,1999.8,8.85277]
[1743030654219,0.00750281,2000.0,1999.9,0.99992]
[1743030654420,0.00750281,2000.0,1999.9,3.09352]
[1743030656322,0.99981,2000.2,1999.9,3.09352]
[1743030656323,3.82036,2000.7,2000.4,0.99962]
[1743030656623,0.99966,2000.5,2000.4,0.99962]
[1743030657013,0.99966,2000.5,2000.4,41.79962]
[1743030657218,2.32116,2000.5,2000.4,41.79962]
[1743030659021,2.32113,2000.5,2000.4,41.79962]
[1743030659422,1.3215,2000.5,2000.4,41.79962]
[1743030659627,2.32113,2000.5,2000.4,41.79962]
[1743030660831,2.32113,2000.5,2000.4,0.99962]
[1743030663333,2.38492,2000.1,2000.0,4.22784]
[1743030666730,3.07752,2000.1,2000.0,4.22784]
[1743030671337,3.07752,2000.1,2000.0,4.22787]
[1743030672036,3.07752,2000.1,2000.0,3.228]
[1743030677434,3.07752,2000.1,2000.0,5.56527]
[1743030677840,3.07752,2000.1,2000.0,4.5654]
[1743030678044,3.07752,2000.1,2000.0,5.56527]
[1743030681837,1.3851,2000.1,2000.0,5.56527]
[1743030682033,1.3851,2000.1,2000.0,8.77307]
[1743030684140,0.673,2000.3,2000.1,0.99978]
[1743030684344,2.40021,2000.2,2000.1,1.69368]
[1743030684839,0.67,2000.4,2000.3,0.99973]
[1743030685039,3.02668,2000.5,2000.4,0.99968]
[1743030686237,3.02668,2000.5,2000.4,41.79968]
[1743030686834,2.36428,2000.5,2000.4,41.79968]
[1743030688430,2.36428,2000.5,2000.4,0.99968]
[1743030690641,0.66990281,2000.7,2000.4,2.49916]
[1743030690940,0.00750281,2000.7,2000.6,0.99958]
[1743030691145,0.00750281,2000.7,2000.6,4.94108]
[1743030696637,0.99932,2001.2,2001.1,0.99931]
[1743030696838,1.66152,2001.2,2001.1,0.99931]
[1743030697242,0.6622,2001.2,2001.1,0.99931]
[1743030697434,1.66148,2001.2,2001.1,0.99931]
[1743030698034,2.98428,2001.2,2001.1,0.99931]
[1743030699144,1.3228,2001.2,2001.1,0.99931]
[1743030699342,0.00750281,2001.4,2001.0,3.83264]
[1743030699536,1.33030281,2001.4,2001.3,0.99923]
[1743030699747,1.33030281,2001.4,2001.3,3.04473]
[1743030700246,0.00750281,2001.4,2001.3,3.04473]
[1743030702248,1.42040281,2001.4,2001.3,3.04473]
[1743030707653,2.41958281,2001.4,2001.3,2.33353]
[1743030708147,1.42040281,2001.4,2001.3,2.33353]
[1743030708349,2.41958281,2001.4,2001.3,0.99923]
[1743030708550,2.41958281,2001.4,2001.3,4.22423]
[1743030709849,0.99923,2001.3,2001.2,5.62874]
[1743030710052,3.79513,2001.3,2001.2,7.43204]
[1743030710755,3.79513,2001.3,2001.2,3.2078]
[1743030710943,3.79513,2001.3,2001.2,6.4328]
[1743030711256,3.79513,2001.3,2001.2,7.43208]
[1743030711545,3.79513,2001.3,2001.2,8.78558]
[1743030713854,2.7959,2001.3,2001.2,8.78558]
[1743030714055,1.4375,2001.3,2001.2,8.78558]
[1743030714449,1.00671281,2001.4,2001.3,0.99923]
[1743030714450,0.00750281,2001.4,2001.3,0.99923]
[1743030714648,1.34810281,2001.4,2001.3,2.37063]
[1743030714947,1.34810281,2001.4,2001.3,3.08503]
[1743030715547,2.34728281,2001.4,2001.3,2.37063]
[1743030719054,1.34810281,2001.4,2001.3,2.37063]
[1743030719355,2.34728281,2001.4,2001.3,2.37063]
[1743030719749,1.34810281,2001.4,2001.3,2.37063]
[1743030720055,2.34728281,2001.4,2001.3,2.37063]
[1743030721549,1.34810281,2001.4,2001.3,2.37063]
[1743030721755,2.34728281,2001.4,2001.3,2.37063]
[1743030721957,1.34810281,2001.4,2001.3,2.37063]
[1743030722356,1.34810281,2001.4,2001.3,3.02413]
[1743030722755,1.34810281,2001.4,2001.3,3.71183]
[1743030723151,0.00750281,2001.4,2001.3,3.71183]
[1743030723362,0.40361738,2002.1,2001.3,3.71183]
[1743030723363,0.6974,2001.7,2001.6,0.99908]
[1743030723564,0.6974,2001.7,2001.6,2.43848]
[1743030723863,1.3752,2001.8,2001.7,0.99903]
[1743030724064,1.3752,2001.8,2001.7,2.43843]
[1743030724265,0.6974,2002.0,2001.9,0.99893]
[1743030724467,0.70490281,2002.0,2001.9,0.99893]
[1743030724666,2.11170281,2002.0,2001.9,5.58653]
[1743030726265,0.00750281,2002.0,2001.9,5.58653]
[1743030726962,0.00750281,2002.0,2001.9,46.38653]
[1743030727765,1.36010281,2002.0,2001.9,46.38653]
[1743030727959,2.35898281,2002.0,2001.9,4.22293]
[1743030728160,0.99893,2001.9,2001.8,1.4262]
[1743030728361,2.35153,2001.9,2001.8,5.64913]
[1743030729365,1.3526,2001.9,2001.8,5.64913]
[1743030730056,2.35153,2001.9,2001.8,4.22293]
[1743030730561,0.99898,2001.8,2001.7,0.99899]
[1743030730763,3.79148,2001.8,2001.7,0.99899]
[1743030730963,2.7925,2001.8,2001.7,2.31569]
[1743030731161,1.00638281,2002.0,2001.9,0.99893]
[1743030731562,1.00638281,2002.0,2001.9,4.22293]
[1743030732465,2.36388281,2002.0,2001.9,4.22293]
[1743030736370,1.36500281,2002.0,2001.9,4.22293]
[1743030736567,2.36388281,2002.0,2001.9,5.56693]
[1743030737173,1.36500281,2002.0,2001.9,5.56693]
[1743030737377,2.36388281,2002.0,2001.9,5.56693]
[1743030738574,1.36500281,2002.0,2001.9,5.56693]
[1743030738772,2.36388281,2002.0,2001.9,5.56693]
[1743030739166,1.36500281,2002.0,2001.9,5.56693]
[1743030740772,1.36500281,2002.0,2001.9,6.24543]
[1743030743272,1.36500281,2002.0,2001.9,9.45323]
[1743030746269,1.36500281,2002.0,2001.9,50.25323]
[1743030747276,2.36388281,2002.0,2001.9,50.25323]
[1743030747476,1.36500281,2002.0,2001.9,50.25323]
[1743030751082,0.00750281,2002.0,2001.9,50.25323]
[1743030754385,0.71370281,2002.0,2001.9,50.25323]
[1743030754572,2.14920281,2002.0,2001.9,50.25323]
[1743030755175,2.14920281,2002.0,2001.9,47.02923]
[1743030755378,3.14808281,2002.0,2001.9,8.77373]
[1743030755781,3.14808281,2002.0,2001.9,7.42973]
[1743030755975,3.14808281,2002.0,2001.9,48.22973]
[1743030756679,3.14808281,2002.0,2001.9,45.00673]
[1743030756879,3.14808281,2002.0,2001.6,0.6586]
[1743030756880,2.49735,2001.9,2001.5,3.2078]
[1743030757079,0.99908,2001.6,2001.5,3.2078]
[1743030757276,0.99908,2001.6,2001.5,4.20693]
[1743030757474,0.99908,2001.6,2001.5,44.0078]
[1743030757980,2.30448,2001.6,2001.5,44.0078]
[1743030760180,2.30448,2001.6,2001.5,45.00693]
[1743030760477,2.30448,2001.6,2001.5,44.0078]
[1743030761885,2.30448,2001.6,2001.5,40.8]
[1743030762273,0.99918,2001.4,2001.3,4.22321]
[1743030762882,2.37178,2001.4,2001.3,45.02321]
[1743030763785,2.37178,2001.4,2001.3,44.024]
[1743030764387,1.3428,2001.5,2001.3,44.024]
[1743030764579,1.3428,2001.5,2001.4,3.11228]
[1743030764887,2.34193,2001.5,2001.4,3.11228]
[1743030765275,2.34193,2001.5,2001.4,43.91228]
[1743030773293,2.34193,2001.5,2001.4,43.19318]
[1743030773598,2.34193,2001.5,2001.4,44.024]
[1743030774605,2.34193,2001.5,2001.3,2.43241]
[1743030774606,0.99918,2001.4,2001.3,2.43241]
[1743030774805,2.32978,2001.4,2001.3,2.43241]
[1743030775005,2.32978,2001.4,2001.3,43.23241]
[1743030779109,2.32978,2001.4,2001.3,42.2332]
[1743030780007,2.32978,2001.4,2001.3,43.23243]
[1743030780211,2.32978,2001.4,2001.3,42.2332]
[1743030781704,2.32978,2001.4,2001.3,40.8]
[1743030781909,0.99938,2001.0,2000.9,3.21530281]
[1743030782107,0.99938,2001.0,2000.9,7.43873281]
[1743030782305,0.99938,2001.0,2000.9,49.56423281]
[1743030782504,0.99938,2001.0,2000.9,40.80750281]
[1743030782702,2.49861,2000.9,2000.5,0.7069]
[1743030782908,5.17901,2000.9,2000.5,4.9305]
[1743030783107,0.99958,2000.6,2000.5,4.9305]
[1743030783315,0.99958,2000.6,2000.5,45.7305]
[1743030783512,2.35357,2000.7,2000.6,0.99958]
[1743030783714,2.35357,2000.7,2000.6,1.71258]
[1743030785015,0.99932,2001.2,2001.1,0.9993]
[1743030785413,0.99933,2001.1,2001.0,7.43114]
[1743030787014,2.40639,2001.2,2001.1,0.99933]
[1743030787211,1.00676281,2001.3,2001.2,0.99928]
[1743030787406,0.00750281,2001.3,2001.2,0.99928]
[1743030789715,3.15552,2001.7,2001.6,0.99908]
[1743030789716,0.6579,2001.7,2001.6,0.99908]
[1743030789914,2.99732,2001.8,2001.7,0.99903]
[1743030790715,0.99908,2001.6,2001.5,4.22309]
[1743030790907,0.99908,2001.6,2001.5,3.23150281]
[1743030791426,1.67128,2001.6,2001.5,3.23150281]
[1743030791920,1.67128,2001.6,2001.5,0.00750281]
[1743030793820,3.03208,2001.6,2001.5,0.00750281]
[1743030796916,3.03208,2001.6,2001.5,1.00663281]
[1743030797221,3.03208,2001.6,2001.5,0.00750281]
[1743030797420,3.03208,2001.6,2001.5,1.45060281]
[1743030798924,3.03208,2001.6,2001.5,0.00750281]
[1743030805433,2.49795,2001.4,2000.9,3.2078]
[1743030805620,0.713,2001.3,2001.2,1.3006]
[1743030805823,2.7826,2001.3,2001.2,1.3006]
[1743030806025,3.78183,2001.3,2001.2,1.3006]
[1743030806727,3.06883,2001.3,2001.2,1.3006]
[1743030815033,3.06883,2001.3,2001.2,2.29988]
[1743030815639,3.06883,2001.3,2001.2,1.3006]
[1743030817144,3.06883,2001.3,2001.2,2.29988]
[1743030817441,0.99933,2001.1,2001.0,4.93204281]
[1743030817841,0.99933,2001.1,2001.0,1.70804281]
[1743030818036,0.99933,2001.1,2001.0,4.93204281]
[1743030818936,0.99933,2001.1,2001.0,6.34854281]
[1743030821343,2.32653,2001.1,2001.0,6.34854281]
[1743030824744,2.32653,2001.1,2001.0,1.42400281]
[1743030824941,3.00703,2001.1,2001.0,1.42400281]
[1743030825843,3.00703,2001.1,2001.0,0.00750281]
[1743030833547,4.99705,2001.0,2000.5,94.3838]
[1743030833846,0.99958,2000.6,2000.5,44.0078]
[1743030834841,2.30398,2000.6,2000.5,44.0078]
[1743030835247,2.30398,2000.6,2000.5,3.2078]
[1743030836050,0.99963,2000.5,2000.4,43.22936]
[1743030836254,2.30403,2000.5,2000.4,43.22936]
[1743030836444,2.30403,2000.5,2000.4,2.42936]
[1743030836846,2.30403,2000.5,2000.4,1.4297]
[1743030837243,2.30403,2000.5,2000.4,2.42938]
[1743030837752,2.30403,2000.5,2000.4,1.4297]
[1743030847355,2.30403,2000.5,2000.4,2.42938]
[1743030848153,2.30403,2000.5,2000.4,1.4297]
[1743030848352,2.30403,2000.5,2000.4,2.42938]
[1743030848553,2.30403,2000.5,2000.4,1.4297]
[1743030848751,1.3044,2000.5,2000.4,2.42938]
[1743030849061,4.21483281,2000.8,2000.7,0.99953]
[1743030849256,5.63173281,2000.8,2000.7,0.99953]
[1743030849562,5.63173281,2000.8,2000.7,41.79953]
[1743030850163,5.63173281,2000.8,2000.7,43.10863]
[1743030851261,4.63220281,2000.8,2000.7,43.10863]
[1743030851468,0.00750281,2000.8,2000.7,43.10863]
[1743030851649,1.00698281,2000.8,2000.7,43.10863]
[1743030852664,2.41818281,2000.8,2000.7,43.10863]
[1743030852965,0.00750281,2000.8,2000.7,43.10863]
[1743030855160,1.00698281,2000.8,2000.7,43.10863]
[1743030855360,0.00750281,2000.8,2000.7,43.10863]
[1743030855861,1.00698281,2000.8,2000.7,43.10863]
[1743030856250,0.00750281,2000.8,2000.7,43.10863]
[1743030867772,1.44380281,2000.8,2000.7,43.10863]
[1743030867962,2.44328281,2000.8,2000.7,43.10863]
[1743030868270,1.44380281,2000.8,2000.7,43.10863]
[1743030869073,2.11310281,2000.8,2000.7,43.10863]
[1743030869264,3.11258281,2000.8,2000.7,43.10863]
[1743030869670,2.11310281,2000.8,2000.7,43.10863]
[1743030870272,1.44380281,2000.8,2000.7,43.10863]
[1743030870566,0.00750281,2000.8,2000.7,43.10863]
[1743030870968,1.32590281,2000.8,2000.7,43.10863]
[1743030871460,1.3762,2001.1,2001.0,0.99938]
[1743030871663,1.3184,2001.1,2001.0,7.43018]
[1743030872261,1.3184,2001.1,2001.0,8.74088]
[1743030872775,2.31773,2001.1,2001.0,8.74088]
[1743030873384,1.3184,2001.1,2001.0,8.74088]
[1743030873675,2.31773,2001.1,2001.0,8.74088]
[1743030873881,1.3184,2001.1,2001.0,8.74088]
[1743030874174,2.31773,2001.1,2001.0,8.74088]
[1743030874375,1.3184,2001.1,2001.0,8.74088]
[1743030883982,1.3184,2001.1,2001.0,3.2078]
[1743030884279,2.31773,2001.1,2001.0,3.2078]
[1743030884575,2.31773,2001.1,2001.0,4.20718]
[1743030885077,2.31773,2001.1,2001.0,3.2078]
[1743030885481,2.31773,2001.1,2001.0,4.20718]
[1743030885777,2.31773,2001.1,2001.0,3.2078]
[1743030889180,1.3184,2001.1,2000.8,2.32276]
[1743030889373,0.99948,2000.8,2000.7,46.33859]
[1743030889884,0.99948,2000.8,2000.7,49.54639]
[1743030890183,2.32045,2000.9,2000.8,0.99948]
[1743030890575,2.32045,2000.9,2000.8,2.31658]
[1743030891479,2.32043,2000.9,2000.8,2.31658]
[1743030893788,1.321,2000.9,2000.8,2.31658]
[1743030894086,1.321,2000.9,2000.8,2.96778]
[1743030894285,1.321,2000.9,2000.8,3.68088]
[1743030895882,0.99938,2001.0,2000.9,0.99943]
[1743030896084,0.7143,2001.1,2001.0,0.99938]
[1743030896386,0.6623,2001.2,2001.1,0.99933]
[1743030896387,1.6616,2001.2,2001.1,0.99933]
[1743030897289,3.0483,2001.2,2001.1,2.34883]
[1743030901086,2.049,2001.2,2001.1,2.34883]
[1743030901282,1.3867,2001.2,2001.1,3.05203]
[1743030903690,1.3867,2001.2,2001.1,2.34883]
[1743030904285,2.38598,2001.2,2001.1,2.34883]
[1743030904485,1.3867,2001.2,2001.1,2.34883]
[1743030904790,2.38598,2001.2,2001.1,2.34883]
[1743030905679,0.99933,2001.1,2000.9,0.7032]
[1743030905888,3.02333,2001.1,2001.0,2.35146]
[1743030906384,1.358,2001.1,2001.0,5.55926]
[1743030909388,1.358,2001.1,2001.0,2.35146]
[1743030909789,1.358,2001.1,2001.0,5.55926]
[1743030910898,1.358,2001.1,2001.0,2.35146]
[1743030911099,1.358,2001.1,2001.0,5.55926]
[1743030913695,1.358,2001.1,2001.0,2.35146]
[1743030913901,1.358,2001.1,2001.0,5.55926]
[1743030916099,1.358,2001.1,2001.0,7.42816]
[1743030916300,2.35733,2001.1,2001.0,7.42816]
[1743030918603,2.35733,2001.1,2001.0,8.79976]
[1743030918803,3.02273,2001.1,2001.0,7.8004]
[1743030918994,3.02273,2001.1,2001.0,6.4288]
[1743030919196,3.72603,2001.1,2001.0,6.4288]
[1743030919602,3.72603,2001.1,2001.0,7.42818]
[1743030921002,3.72603,2001.1,2001.0,8.85258]
[1743030922303,3.72603,2001.1,2001.0,7.42818]
[1743030922903,3.72603,2001.1,2001.0,6.4288]
[1743030923202,3.72603,2001.1,2001.0,3.2078]
[1743030923393,0.99943,2000.9,2000.8,0.99947]
[1743030923799,1.3945,2000.9,2000.8,0.99947]
[1743030923998,2.39393,2000.9,2000.8,0.99947]
[1743030927001,1.3945,2000.9,2000.8,0.99947]
[1743030927506,2.39393,2000.9,2000.8,0.99947]
[1743030928702,1.3945,2000.9,2000.8,0.99947]
[1743030929408,5.83750281,2001.3,2001.2,0.99928]
[1743030929711,8.24123281,2001.3,2001.2,0.99928]
[1743030930213,7.24200281,2001.3,2001.2,0.99928]
[1743030930810,8.58510281,2001.3,2001.2,0.99928]
[1743030931301,3.2078,2001.8,2001.0,7.1373]
[1743030931507,0.99904,2001.7,2001.6,0.99903]
[1743030931715,3.12684,2001.7,2001.6,0.99903]
[1743030938923,2.1278,2001.7,2001.6,4.20683]
[1743030939804,3.12683,2001.7,2001.6,4.20683]
[1743030940615,3.12683,2001.7,2001.6,0.99903]
[1743030941218,2.1278,2001.7,2001.6,0.99903]
[1743030941714,3.12683,2001.7,2001.6,0.99903]
[1743030941913,2.1278,2001.7,2001.6,0.99903]
[1743030942616,3.12683,2001.7,2001.6,0.99903]